bitfinex-derivatives/quotes_ETHF0:USTF0_20250102
["timestamp","ask_amount","ask_price","bid_price","bid_amount"]
[1735792115473,8.13407167,3393.0,3392.4,1.04570591]
[1735792115474,0.29527,3392.9,3392.7,0.29529]
[1735792115665,4.25350591,3392.8,3391.9,3.2078]
[1735792115865,0.29534,3392.2,3392.0,0.29535]
[1735792116362,0.29534,3392.2,3392.0,0.29534]
[1735792116565,0.29534,3392.2,3391.9,4.0854]
[1735792116762,0.29534,3392.2,3391.9,4.38075]
[1735792116967,0.29534,3392.2,3392.0,0.29535]
[1735792117164,0.8481,3392.3,3391.9,4.0854]
[1735792117362,1.04570591,3392.4,3392.1,0.29534]
[1735792117767,1.04570591,3392.4,3392.2,0.4587]
[1735792118378,0.8265,3392.7,3392.2,0.4587]
[1735792118771,0.29533,3392.3,3392.2,0.4587]
[1735792119063,1.2339,3392.7,3392.2,0.4587]
[1735792119275,0.29532,3392.4,3392.2,0.4587]
[1735792119575,0.29532,3392.4,3391.5,3.2078]
[1735792119576,0.73834,3392.2,3391.5,3.2078]
[1735792119876,0.29538,3391.7,3391.6,1.15]
[1735792120067,0.29537,3391.8,3391.6,1.15]
[1735792120268,0.29537,3391.8,3391.5,3.50319]
[1735792120269,0.8397,3392.0,3391.5,3.2078]
[1735792120475,0.29539,3391.7,3391.6,1.15]
[1735792120670,5.58616501,3391.8,3391.5,1.15]
[1735792120874,0.70119,3391.6,3391.5,1.15]
[1735792121375,0.29542,3391.3,3391.2,1.15]
[1735792122674,0.29541,3391.3,3391.2,1.15]
[1735792125870,0.29541,3391.4,3391.2,1.15]
[1735792131079,3.2078,3391.8,3391.3,2.37836501]
[1735792131287,3.50317,3391.8,3391.5,0.29539]
[1735792131476,3.50317,3391.8,3391.6,0.76299]
[1735792132075,3.50317,3391.8,3391.6,0.4676]
[1735792132286,0.29538,3391.7,3391.6,0.4676]
[1735792132986,3.50317,3391.8,3391.6,0.4676]
[1735792135278,0.29538,3391.7,3391.6,0.4676]
[1735792135985,3.2078,3391.8,3391.6,0.4676]
[1735792136192,3.50317,3391.8,3391.6,0.4676]
[1735792136395,0.29538,3391.7,3391.6,0.4676]
[1735792136587,3.2078,3391.8,3391.6,0.4676]
[1735792136787,3.50317,3391.8,3391.6,0.4676]
[1735792137490,0.29538,3391.7,3391.6,0.4676]
[1735792140495,3.2078,3391.9,3391.6,0.4676]
[1735792140696,0.29538,3391.7,3391.6,0.4676]
[1735792143996,3.2078,3391.8,3391.6,0.4676]
[1735792144301,3.2078,3391.8,3391.7,0.29538]
[1735792144711,3.50317,3391.8,3391.6,1.51326683]
[1735792145003,3.50317,3391.8,3391.6,1.80864683]
[1735792145905,0.29537,3391.8,3391.6,1.80864683]
[1735792146210,0.29537,3391.8,3391.6,0.76298]
[1735792154112,0.29537,3391.8,3391.6,0.4676]
[1735792154315,0.29537,3391.8,3391.6,0.76298]
[1735792155513,0.29538,3391.7,3391.6,0.4676]
[1735792156215,0.842,3391.9,3391.4,0.449]
[1735792156612,0.2954,3391.5,3391.4,0.449]
[1735792156814,0.29539,3391.6,3391.4,0.7444]
[1735792157721,0.29539,3391.6,3391.5,0.2954]
[1735792157912,3.50317,3391.8,3391.4,0.449]
[1735792158216,0.29538,3391.7,3391.4,0.449]
[1735792158416,3.50317,3391.8,3391.5,0.2954]
[1735792158617,3.50317,3391.8,3391.6,0.29538]
[1735792158811,3.50317,3391.8,3391.4,41.249]
[1735792159012,3.50317,3391.8,3391.7,0.29538]
[1735792159013,3.2078,3391.8,3391.7,0.29538]
[1735792161419,3.50317,3391.8,3391.6,0.29538]
[1735792161921,3.50317,3391.8,3391.7,0.4313]
[1735792162421,3.50317,3391.8,3391.7,0.72668]
[1735792163118,3.2078,3391.8,3391.7,0.72668]
[1735792164114,3.50317,3391.8,3391.7,0.4313]
[1735792165024,3.2078,3391.8,3391.7,0.4313]
[1735792165321,3.2078,3391.8,3391.7,0.72668]
[1735792166523,3.50317,3391.8,3391.7,0.4313]
[1735792167022,3.50317,3391.8,3391.5,1.44539]
[1735792167224,0.29538,3391.7,3391.6,0.4615]
[1735792170423,0.2954,3391.4,3391.3,0.4386]
[1735792170623,4.0493,3391.8,3391.3,0.73401]
[1735792170624,1.34124103,3391.5,3391.3,0.73401]
[1735792170822,0.29541,3391.3,3391.2,1.15]
[1735792171224,0.29541,3391.3,3391.2,1.44542]
[1735792174223,0.29541,3391.3,3391.2,1.15]
[1735792174425,0.29541,3391.3,3391.2,1.44542]
[1735792177421,0.29541,3391.3,3391.2,1.15]
[1735792178430,0.29541,3391.3,3391.2,1.44542]
[1735792178930,8.43171389,3391.3,3391.2,1.44542]
[1735792179725,8.13630389,3391.3,3391.2,1.44542]
[1735792181834,8.43171389,3391.3,3391.2,1.44542]
[1735792184131,8.13630389,3391.3,3391.2,2.49126103]
[1735792184432,0.29541,3391.4,3391.3,0.29541]
[1735792186739,0.2954,3391.4,3391.2,2.19584103]
[1735792187034,0.2954,3391.4,3391.3,0.29541]
[1735792188935,9.29949413,3391.5,3391.3,0.29541]
[1735792189334,9.59489413,3391.5,3391.4,0.4628]
[1735792191141,9.59489413,3391.5,3391.4,0.7582]
[1735792192342,9.29949413,3391.5,3391.4,0.7582]
[1735792195341,8.13699982,3391.5,3391.4,1.80404103]
[1735792195545,8.13699982,3391.5,3391.4,0.7582]
[1735792197445,3.2078,3391.7,3391.6,0.29539]
[1735792200653,8.13699982,3391.8,3391.5,1.93434103]
[1735792200859,8.13699982,3391.8,3391.7,0.29538]
[1735792201153,8.13699982,3391.8,3391.5,1.18389]
[1735792201154,0.29538,3391.7,3391.5,1.18389]
[1735792201645,1.04584103,3391.8,3391.5,0.8885]
[1735792201846,11.56723465,3391.9,3391.8,0.29537]
[1735792202654,11.86259465,3391.9,3391.7,0.29537]
[1735792203149,11.56723465,3391.9,3391.8,0.29537]
[1735792205551,9.29949413,3391.9,3391.8,0.29537]
[1735792211251,19.71000532,3392.0,3391.7,1.04584103]
[1735792211452,19.71000532,3392.0,3391.9,0.29536]
[1735792211755,19.71000532,3392.0,3391.9,1.34120103]
[1735792212555,10.41051119,3392.0,3391.9,1.34120103]
[1735792214860,8.42972694,3392.5,3391.9,1.04584103]
[1735792215157,9.18025797,3392.5,3392.2,1.04584103]
[1735792215459,9.18025797,3392.5,3392.2,2.19584103]
[1735792215760,12.96269413,3392.7,3392.2,1.15]
[1735792215761,1.34117103,3392.3,3392.2,1.15]
[1735792216963,4.54897103,3392.3,3392.2,1.15]
[1735792217467,0.29532,3392.4,3392.2,1.44533]
[1735792218457,1.04584103,3392.3,3392.2,1.44533]
[1735792218662,0.29532,3392.4,3392.2,1.44533]
[1735792219869,9.58665797,3392.6,3392.2,1.15]
[1735792220166,3.50313,3392.3,3392.2,1.15]
[1735792222369,3.91103,3392.3,3392.2,1.15]
[1735792223168,3.2078,3392.3,3392.2,1.15]
[1735792223569,3.2078,3392.3,3392.2,1.6008]
[1735792224262,8.13441694,3392.5,3392.2,1.89613]
[1735792224571,0.29532,3392.4,3392.2,1.6008]
[1735792225171,1.34116103,3392.4,3392.2,1.6008]
[1735792226375,0.29532,3392.4,3392.2,1.89613]
[1735792226768,0.29531,3392.5,3392.2,1.6008]
[1735792226965,9.58665797,3392.6,3392.4,0.29532]
[1735792226966,8.83611694,3392.6,3392.4,0.29532]
[1735792227468,0.7017,3392.6,3392.4,0.29532]
[1735792227770,0.2953,3392.6,3392.4,0.29532]
[1735792228076,8.12126163,3392.5,3392.4,0.29532]
[1735792229970,8.12126163,3392.6,3392.3,1.04584103]
[1735792230175,8.12126163,3392.6,3392.4,0.29532]
[1735792230377,8.12126163,3392.6,3392.5,0.4637]
[1735792230674,9.46240266,3392.6,3392.5,0.4637]
[1735792231080,9.16710266,3392.6,3392.2,1.15]
[1735792231271,0.29533,3392.3,3392.2,1.15]
[1735792231776,1.34116103,3392.4,3392.2,1.15]
[1735792231977,0.29533,3392.3,3392.2,1.15]
[1735792232376,1.34116103,3392.4,3392.2,1.44533]
[1735792232676,0.29532,3392.4,3392.2,1.44533]
[1735792232876,0.29532,3392.4,3392.2,1.15]
[1735792233176,0.29532,3392.4,3392.2,1.44533]
[1735792234476,0.29532,3392.4,3392.2,1.15]
[1735792234673,0.29532,3392.4,3392.2,1.44533]
[1735792235168,9.16710266,3392.6,3392.2,1.44533]
[1735792235373,0.29532,3392.4,3392.2,1.44533]
[1735792235579,0.29531,3392.5,3392.2,1.44533]
[1735792235781,0.29531,3392.5,3392.3,0.29533]
[1735792236280,9.46240266,3392.6,3392.3,0.29533]
[1735792236681,1.34114103,3392.6,3392.3,0.29533]
[1735792237085,1.34114103,3392.6,3392.2,2.19584103]
[1735792237278,0.2953,3392.6,3392.4,1.34115103]
[1735792237484,0.2953,3392.6,3392.5,0.4674]
[1735792237678,3.2078,3392.7,3392.6,0.2953]
[1735792237873,3.2078,3392.7,3392.6,0.7362]
[1735792238978,10.41051119,3392.8,3392.6,0.7362]
[1735792239178,10.41051119,3392.8,3392.6,1.78204103]
[1735792240078,10.41051119,3392.8,3392.6,1.48674103]
[1735792240279,0.29534,3392.1,3391.8,3.50316]
[1735792240481,1.04584103,3392.0,3391.6,1.15]
[1735792240786,0.29538,3391.7,3391.6,1.15]
[1735792241584,1.04584103,3391.8,3391.6,1.15]
[1735792241790,0.2954,3391.5,3391.4,0.8981]
[1735792242087,0.2954,3391.5,3391.4,2.0481]
[1735792245691,0.2954,3391.5,3391.4,0.8981]
[1735792256003,0.29539,3391.6,3391.4,0.8981]
[1735792256506,0.2954,3391.5,3391.4,0.8981]
[1735792257103,11.32906163,3391.7,3391.4,0.8981]
[1735792258208,0.29539,3391.6,3391.4,0.8981]
[1735792259006,11.32906163,3391.7,3391.4,0.8981]
[1735792259201,11.32906163,3391.7,3390.9,3.2078]
[1735792259504,11.32906163,3391.7,3391.3,2.37966471]
[1735792260009,0.29539,3391.6,3391.3,2.67507471]
[1735792260604,0.29539,3391.6,3391.3,2.37966471]
[1735792262208,0.2954,3391.5,3391.2,0.4593]
[1735792262612,0.2954,3391.5,3391.2,0.75472]
[1735792262812,0.2954,3391.5,3391.2,0.4593]
[1735792263006,0.2954,3391.5,3391.2,0.75472]
[1735792263614,0.29539,3391.6,3391.2,0.75472]
[1735792264014,0.29539,3391.6,3391.3,0.29541]
[1735792264216,3.2078,3391.7,3391.3,0.29541]
[1735792264511,3.50318,3391.7,3391.4,0.4585]
[1735792264710,3.50318,3391.7,3391.4,0.7539]
[1735792265306,3.2078,3391.7,3391.4,0.4585]
[1735792265513,3.2078,3391.7,3391.5,0.29539]
[1735792265708,3.2078,3391.7,3391.6,0.4295]
[1735792265910,3.2078,3391.7,3391.6,0.72489]
[1735792266304,2.5062,3391.7,3391.6,0.72489]
[1735792267908,0.29536,3391.9,3391.6,0.72489]
[1735792268215,0.29536,3391.9,3391.7,1.5933]
[1735792268515,0.29537,3391.9,3391.7,1.5933]
[1735792268716,0.29536,3392.0,3391.7,1.88867]
[1735792269412,3.2078,3392.1,3391.7,1.5933]
[1735792269715,8.12126163,3392.2,3391.7,1.5933]
[1735792270105,8.12126163,3392.2,3391.9,2.37966471]
[1735792270305,8.12126163,3392.2,3392.0,0.29535]
[1735792270619,0.29533,3392.3,3392.0,0.74005]
[1735792270919,8.12126163,3392.4,3392.0,0.4447]
[1735792271216,0.29533,3392.3,3392.0,0.74004]
[1735792272418,0.29532,3392.4,3392.1,0.29534]
[1735792272716,0.29532,3392.4,3392.2,0.9043]
[1735792272917,3.50311,3392.5,3392.2,1.19963]
[1735792273117,0.29532,3392.4,3392.2,1.19963]
[1735792273523,3.50311,3392.5,3392.2,1.19963]
[1735792274417,3.2078,3392.5,3392.2,0.9043]
[1735792274621,3.2078,3392.5,3392.4,0.29532]
[1735792274816,3.2078,3392.5,3392.4,1.15]
[1735792275017,0.2953,3392.6,3392.4,1.44532]
[1735792275414,0.2953,3392.6,3392.5,0.4503]
[1735792275617,0.29528,3392.8,3392.5,0.7456]
[1735792276120,11.32906163,3392.9,3392.5,0.4503]
[1735792276321,11.32906163,3392.9,3392.6,0.2953]
[1735792276524,3.2078,3392.9,3392.7,0.4538]
[1735792276821,3.2078,3392.9,3392.8,0.4545]
[1735792278320,3.2078,3392.9,3392.8,0.74978]
[1735792279421,0.29524,3393.3,3392.8,0.4545]
[1735792279631,0.29524,3393.3,3392.9,0.29526]
[1735792280024,0.29524,3393.3,3393.0,0.4295]
[1735792280323,0.29524,3393.3,3393.1,1.15]
[1735792280523,0.29524,3393.3,3393.2,0.4371]
[1735792280721,3.79471602,3393.4,3393.2,0.4371]
[1735792280925,0.19873,3393.5,3393.3,0.29524]
[1735792281126,0.49395,3393.5,3393.4,0.4409]
[1735792281822,0.19873,3393.5,3393.4,0.4409]
[1735792282016,0.49395,3393.5,3393.4,0.4409]
[1735792283027,0.19873,3393.5,3393.4,0.4409]
[1735792283224,0.19873,3393.5,3393.4,0.73613]
[1735792284320,0.19873,3393.5,3393.4,3.94393]
[1735792291028,0.19873,3393.5,3393.4,0.73613]
[1735792291219,0.19873,3393.5,3393.4,1.88513]
[1735792299634,0.49395,3393.5,3393.4,1.88513]
[1735792300136,0.19873,3393.5,3393.4,1.88513]
[1735792300335,0.49395,3393.5,3393.4,1.88513]
[1735792300939,0.19873,3393.5,3393.4,1.88513]
[1735792305436,4.74646274,3393.5,3393.4,0.73613]
[1735792305639,1.24344274,3393.5,3393.4,1.88513]
[1735792307131,0.19873,3393.5,3393.4,1.88513]
[1735792308637,0.19873,3393.5,3393.4,2.92984274]
[1735792308844,1.04471274,3394.1,3394.0,0.29518]
[1735792309044,0.4258,3394.2,3394.1,0.29517]
[1735792309339,3.2078,3394.3,3394.2,0.29516]
[1735792309544,1.04471274,3394.6,3394.1,2.19371274]
[1735792309736,3.6616,3394.8,3394.7,0.29512]
[1735792310247,3.2078,3394.8,3394.7,0.29512]
[1735792310537,0.4436,3395.3,3394.7,0.29512]
[1735792310538,3.6616,3395.2,3395.1,0.29508]
[1735792310744,4.70631274,3395.2,3395.1,0.29508]
[1735792310945,3.2078,3395.6,3395.0,1.149]
[1735792311145,3.50284,3395.6,3395.3,0.29506]
[1735792311444,0.4538,3395.7,3395.6,0.29504]
[1735792311640,1.04471274,3395.7,3395.6,0.29504]
[1735792312037,1.04471274,3395.9,3395.8,0.29502]
[1735792312244,8.09908661,3396.2,3395.8,2.37306166]
[1735792312447,8.09908661,3396.2,3396.1,0.295]
[1735792313140,3.2078,3396.5,3396.4,0.29497]
[1735792313340,3.2078,3396.5,3396.4,1.44397]
[1735792313739,8.09908661,3396.9,3396.8,0.29493]
[1735792314637,2.82386166,3397.4,3396.6,3.2078]
[1735792314835,2.37306166,3397.7,3396.6,3.2078]
[1735792315047,2.37306166,3397.7,3397.0,3.2078]
[1735792315241,2.66792166,3397.7,3397.3,0.29489]
[1735792315446,3.50264,3397.9,3397.5,0.29487]
[1735792315748,3.2078,3397.9,3397.2,0.2949]
[1735792315941,3.2078,3397.9,3397.7,0.29486]
[1735792316136,3.2078,3397.9,3397.1,0.4443]
[1735792316341,2.37306166,3397.4,3397.1,1.149]
[1735792316640,0.2949,3397.2,3397.1,1.149]
[1735792317152,0.29491,3397.1,3397.0,1.148]
[1735792317544,2.37306166,3397.1,3397.0,1.148]
[1735792317743,2.37306166,3397.1,3396.1,0.73929]
[1735792317744,0.29496,3396.6,3396.1,0.73929]
[1735792317944,0.29496,3396.6,3396.2,0.29498]
[1735792318251,0.29496,3396.6,3396.3,1.148]
[1735792318747,0.29496,3396.5,3396.3,1.148]
[1735792318947,0.29496,3396.5,3396.2,0.29498]
[1735792319245,0.29496,3396.5,3396.3,1.148]
[1735792319445,3.2078,3396.7,3396.4,1.148]
[1735792319744,0.29495,3396.6,3396.4,1.148]
[1735792320142,3.50275,3396.7,3396.4,1.148]
[1735792320350,3.2078,3396.7,3396.4,1.44297]
[1735792320951,3.2078,3396.7,3396.5,0.29496]
[1735792321354,0.29493,3396.9,3396.6,1.148]
[1735792321852,0.29493,3396.8,3396.6,1.148]
[1735792322150,0.29492,3397.0,3396.6,1.148]
[1735792322448,0.29493,3396.9,3396.6,1.148]
[1735792323048,3.2078,3397.1,3396.6,1.148]
[1735792323248,0.29492,3397.0,3396.6,1.148]
[1735792324244,3.2078,3397.1,3396.6,1.148]
[1735792324446,0.29493,3396.9,3396.4,0.29496]
[1735792324751,0.29493,3396.9,3396.5,1.148]
[1735792325243,0.29493,3396.9,3396.5,0.29496]
[1735792325448,3.2078,3397.1,3396.6,1.148]
[1735792325748,0.29492,3397.0,3396.6,1.148]
[1735792326853,3.2078,3397.1,3396.7,2.37306166]
[1735792327044,3.50268,3397.5,3397.0,0.29492]
[1735792327441,3.2078,3397.5,3397.1,0.7435]
[1735792328050,3.2078,3397.5,3397.2,0.29489]
[1735792328243,3.2078,3397.5,3397.3,1.148]
[1735792329745,3.50268,3397.5,3397.3,1.148]
[1735792329950,3.2078,3397.5,3397.3,1.148]
[1735792330246,3.50268,3397.5,3397.3,1.148]
[1735792331147,3.2078,3397.5,3397.3,1.148]
[1735792331342,3.50268,3397.5,3397.3,1.148]
[1735792332851,0.29488,3397.4,3397.3,1.148]
[1735792334251,0.2949,3397.2,3397.1,0.4486]
[1735792334447,0.2949,3397.2,3397.1,1.148]
[1735792334648,0.29493,3396.8,3396.7,3.6608]
[1735792334846,0.29493,3396.8,3396.7,4.8088]
[1735792335046,0.29495,3396.6,3396.5,0.4512]
[1735792335248,0.29495,3396.6,3396.5,1.5992]
[1735792335449,5.58086166,3396.9,3396.2,3.666]
[1735792335648,0.29498,3396.3,3396.2,0.4582]
[1735792335954,0.29498,3396.3,3396.2,1.6062]
[1735792336155,0.29498,3396.3,3396.2,0.4582]
[1735792336357,0.29498,3396.3,3396.2,1.6062]
[1735792336552,0.29498,3396.3,3396.2,1.148]
[1735792337652,0.295,3396.1,3396.0,0.4671]
[1735792337849,0.295,3396.0,3395.9,1.148]
[1735792338757,0.29501,3395.9,3395.8,1.148]
[1735792339752,0.29509,3395.0,3394.9,1.148]
[1735792339954,0.29506,3395.4,3395.1,0.29508]
[1735792340156,0.29504,3395.6,3395.3,0.29506]
[1735792340754,0.29504,3395.6,3395.4,1.148]
[1735792341055,3.2078,3395.9,3395.4,1.148]
[1735792341254,0.29505,3395.5,3395.4,1.148]
[1735792345656,3.2078,3395.9,3395.4,1.148]
[1735792345858,0.29504,3395.6,3395.5,0.29505]
[1735792346058,0.29504,3395.6,3395.4,1.148]
[1735792346059,0.29504,3395.6,3395.4,1.44305]
[1735792346254,0.29504,3395.6,3395.4,1.148]
[1735792346560,0.29504,3395.6,3395.4,1.44305]
[1735792346762,0.29504,3395.6,3395.5,40.8]
[1735792346960,0.29504,3395.6,3395.5,41.948]
[1735792347662,0.29504,3395.6,3395.5,1.148]
[1735792347959,0.29503,3395.7,3395.5,1.148]
[1735792348259,0.29503,3395.7,3395.6,41.2398]
[1735792348749,0.29503,3395.7,3395.6,0.4398]
[1735792349451,0.29503,3395.7,3395.6,1.5878]
[1735792351160,3.2078,3395.9,3395.6,1.5878]
[1735792351457,0.29503,3395.7,3395.6,1.5878]
[1735792355160,3.2078,3395.9,3395.6,1.5878]
[1735792355356,0.29503,3395.7,3395.6,1.5878]
[1735792356264,0.29503,3395.8,3395.6,1.5878]
[1735792356657,0.29503,3395.7,3395.6,1.5878]
[1735792358663,0.29505,3395.5,3395.4,1.148]
[1735792359458,0.29507,3395.2,3395.1,0.8588]
[1735792359862,0.29507,3395.2,3395.1,2.0068]
[1735792360368,0.29507,3395.2,3395.1,2.30188]
[1735792360667,3.2078,3395.5,3395.1,2.0068]
[1735792360963,0.29507,3395.2,3395.1,2.30188]
[1735792361557,0.29507,3395.3,3395.2,0.29507]
[1735792361762,0.29507,3395.2,3395.1,2.30188]
[1735792361963,0.29507,3395.3,3395.2,0.29507]
[1735792362567,3.2078,3395.5,3395.4,0.29506]
[1735792362762,0.29503,3395.8,3395.7,0.29502]
[1735792363259,0.29503,3395.8,3395.4,0.4431]
[1735792363260,0.29503,3395.7,3395.6,0.29503]
[1735792364066,0.29503,3395.7,3395.4,0.4431]
[1735792364067,3.2078,3395.9,3395.4,0.4431]
[1735792364267,0.29503,3395.8,3395.7,0.29503]
[1735792364462,3.50282,3395.9,3395.7,0.29503]
[1735792364668,3.50282,3395.9,3395.8,0.4342]
[1735792365268,3.50282,3395.9,3395.8,2.0242]
[1735792365269,3.2078,3395.9,3395.8,2.0242]
[1735792365567,3.2078,3395.9,3395.8,2.31922]
[1735792366066,2.5064,3395.9,3395.8,4.69228166]
[1735792366663,3.2078,3396.5,3395.8,4.39726166]
[1735792366861,10.10750094,3396.9,3396.7,0.29494]
[1735792367061,6.89970094,3396.9,3396.8,0.29493]
[1735792367266,6.89970094,3396.9,3396.8,0.72593]
[1735792367566,0.29489,3397.3,3397.0,0.29491]
[1735792367767,0.29489,3397.4,3397.1,0.2949]
[1735792368671,3.50267,3397.6,3397.3,0.29489]
[1735792368861,3.2078,3397.6,3397.4,1.148]
[1735792369065,3.2078,3397.6,3397.4,1.44288]
[1735792369263,3.2078,3397.6,3397.4,1.148]
[1735792369475,3.2078,3397.6,3397.4,1.44288]
[1735792369769,3.2078,3397.6,3397.5,0.29487]
[1735792370171,3.2078,3397.6,3397.5,0.75557]
[1735792370763,0.29484,3397.9,3397.5,0.75557]
[1735792370963,12.4805626,3398.0,3397.5,0.4607]
[1735792371360,0.29486,3397.7,3397.5,0.4607]
[1735792372966,5.58086166,3398.0,3397.5,0.4607]
[1735792373168,3.50263,3398.0,3397.7,0.29485]
[1735792373367,3.2078,3398.0,3397.7,0.29485]
[1735792374471,3.2078,3398.0,3397.6,0.29486]
[1735792374671,0.00297672,3397.9,3397.5,0.4607]
[1735792374871,0.00297672,3397.9,3397.8,0.29484]
[1735792375269,0.00297672,3397.9,3397.8,3.50264]
[1735792375974,0.00297672,3397.9,3397.8,3.94604]
[1735792376174,6.89970094,3398.6,3398.3,2.37306166]
[1735792376466,0.2948,3398.4,3398.1,1.148]
[1735792376662,0.2948,3398.4,3398.1,1.44282]
[1735792376865,3.2078,3398.8,3398.1,1.148]
[1735792377273,0.29481,3398.3,3398.1,1.148]
[1735792377978,0.29481,3398.2,3398.1,1.148]
[1735792379671,0.29481,3398.2,3397.6,0.29486]
[1735792379672,0.29483,3398.0,3397.8,1.148]
[1735792381680,0.29483,3398.1,3397.8,1.148]
[1735792381977,0.29483,3398.1,3397.8,1.44284]
[1735792382177,0.8801,3398.3,3397.8,1.148]
[1735792382378,1.17491,3398.3,3397.9,0.29484]
[1735792382580,0.29481,3398.2,3397.9,0.29484]
[1735792382781,1.17491,3398.3,3398.0,0.29483]
[1735792383283,1.17491,3398.3,3397.8,1.148]
[1735792383284,3.2078,3398.4,3397.9,0.29484]
[1735792383582,3.2078,3398.4,3398.2,0.29481]
[1735792383781,0.29479,3398.6,3398.2,0.29481]
[1735792383981,3.6531,3398.8,3397.9,0.4569]
[1735792384183,3.6531,3398.8,3397.8,47.52886166]
[1735792384184,0.29481,3398.2,3397.8,4.3558]
[1735792384380,0.29482,3398.1,3397.8,1.44284]
[1735792384582,0.29482,3398.2,3397.9,0.29484]
[1735792385186,0.29481,3398.3,3398.0,0.29483]
[1735792386081,0.29482,3398.2,3397.9,0.29483]
[1735792386285,0.29483,3398.1,3397.8,1.44284]
[1735792386479,3.2078,3398.4,3397.9,0.29484]
[1735792386680,0.29482,3398.1,3397.9,0.29484]
[1735792386885,0.29482,3398.1,3397.8,1.148]
[1735792387085,0.29482,3398.1,3397.8,1.44285]
[1735792387286,0.4461,3398.3,3397.8,1.148]
[1735792387487,0.29484,3397.9,3397.8,1.148]
[1735792387689,0.29486,3397.6,3397.5,0.4607]
[1735792387989,0.29486,3397.6,3397.5,1.6077]
[1735792388292,3.2078,3398.0,3397.5,1.6077]
[1735792388784,0.29486,3397.7,3397.5,1.6077]
[1735792388981,3.2078,3398.0,3397.5,1.6077]
[1735792389384,3.2078,3398.0,3397.6,0.29486]
[1735792389690,0.29484,3397.9,3397.6,0.29486]
[1735792389888,3.50264,3398.0,3397.5,3.98076166]
[1735792390079,3.2078,3398.0,3397.7,0.29485]
[1735792390281,3.50264,3398.0,3397.8,0.29485]
[1735792390583,3.2078,3398.0,3397.5,3.98076166]
[1735792390780,3.2078,3398.0,3397.9,0.29484]
[1735792391788,0.29483,3398.1,3397.9,0.29484]
[1735792392188,0.29483,3398.1,3397.5,3.98076166]
[1735792392189,3.2078,3398.4,3397.8,0.29484]
[1735792392396,0.29483,3398.0,3397.8,0.29484]
[1735792392995,0.29484,3397.9,3397.5,3.98076166]
[1735792393199,0.29484,3397.9,3397.7,0.29485]
[1735792393387,0.29484,3397.9,3397.6,0.29486]
[1735792393693,3.2078,3398.4,3397.5,3.98076166]
[1735792394096,0.29484,3397.9,3397.7,0.29485]
[1735792394596,0.29484,3397.9,3397.5,3.98076166]
[1735792394597,0.29484,3397.9,3397.8,0.29485]
[1735792395200,0.29485,3397.8,3397.7,0.29485]
[1735792396293,4.40002,3398.4,3397.5,1.6077]
[1735792396294,3.2078,3398.0,3397.5,1.6077]
[1735792396488,0.29485,3397.8,3397.7,0.29485]
[1735792397491,0.29486,3397.7,3397.6,0.29486]
[1735792397793,3.2078,3398.0,3397.5,1.6077]
[1735792398392,0.29486,3397.6,3397.5,1.90257]
[1735792398593,0.29486,3397.6,3397.5,0.4607]
[1735792398793,0.29484,3397.9,3397.5,1.159]
[1735792399098,0.29486,3397.6,3397.5,1.159]
[1735792399802,0.29486,3397.6,3397.5,1.45387]
[1735792400095,0.29486,3397.6,3397.5,1.159]
[1735792400096,3.50266,3397.6,3397.5,1.159]
[1735792400292,3.2078,3397.6,3397.0,0.4491]
[1735792400493,0.29493,3396.9,3396.8,0.4551]
[1735792401100,0.29494,3396.7,3396.6,1.159]
[1735792401503,3.2078,3396.8,3396.3,0.4551]
[1735792401693,0.29496,3396.5,3396.4,1.159]
[1735792401890,3.2078,3396.8,3396.4,1.159]
[1735792402197,3.50274,3396.8,3396.4,1.159]
[1735792402396,3.50274,3396.8,3396.6,0.29495]
[1735792402804,3.2078,3396.8,3396.6,0.29495]
[1735792402993,3.50274,3396.8,3396.6,0.29495]
[1735792403194,3.2078,3396.8,3396.4,1.159]
[1735792403400,0.29494,3396.7,3396.5,0.29496]
[1735792403702,3.2078,3396.8,3396.6,0.29495]
[1735792404097,0.73723,3397.3,3396.6,2.37306166]
[1735792404098,3.2078,3397.3,3396.6,2.37306166]
[1735792404301,0.4235,3397.5,3396.6,2.37306166]
[1735792404302,0.4235,3397.5,3397.3,0.29489]
[1735792404496,0.29489,3397.4,3396.7,3.2078]
[1735792404697,0.29489,3397.4,3397.2,0.2949]
[1735792405394,0.29489,3397.4,3396.9,0.8996]
[1735792405395,3.2078,3397.8,3396.9,0.8996]
[1735792405605,0.29487,3397.6,3397.3,0.29489]
[1735792405799,0.29487,3397.6,3397.3,1.45389]
[1735792406603,3.2078,3397.8,3397.5,0.29487]
[1735792406904,0.29487,3397.6,3397.3,1.45389]
[1735792407099,0.29488,3397.5,3397.3,1.159]
[1735792407402,0.29488,3397.5,3397.3,1.45389]
[1735792407706,0.29487,3397.6,3397.3,1.45389]
[1735792408202,0.4439,3397.9,3397.3,1.159]
[1735792408203,3.2078,3397.4,3397.3,1.159]
[1735792408503,3.50268,3397.4,3397.3,1.159]
[1735792409307,0.29491,3397.1,3396.9,0.8996]
[1735792409507,0.29491,3397.1,3397.0,1.159]
[1735792409807,0.2949,3397.3,3397.0,1.45392]
[1735792410003,0.2949,3397.2,3397.0,1.45392]
[1735792410307,0.29489,3397.3,3397.1,0.29491]
[1735792410498,0.2949,3397.2,3397.0,1.159]
[1735792410699,0.2949,3397.2,3397.0,1.45392]
[1735792410900,3.2078,3397.4,3397.0,1.159]
[1735792411198,3.2078,3397.4,3397.2,0.29489]